bitfinex-derivatives/quotes_BTCF0:USTF0_20251210
["timestamp","ask_amount","ask_price","bid_price","bid_amount"]
[1765391162807,0.1465,92188.0,92187.0,0.13548]
[1765391163410,0.1485,92188.0,92187.0,0.13548]
[1765391164518,0.1485,92188.0,92187.0,0.06994]
[1765391164718,0.1485,92188.0,92187.0,0.13548]
[1765391164915,0.1475,92188.0,92187.0,0.13548]
[1765391165116,0.1475,92188.0,92187.0,0.1702648]
[1765391165518,0.1455,92188.0,92187.0,0.1702648]
[1765391165717,0.1465,92188.0,92187.0,0.1702648]
[1765391167214,0.1465,92188.0,92187.0,0.0347848]
[1765391167420,0.1465,92188.0,92187.0,0.1811125]
[1765391168320,0.002,92188.0,92187.0,0.1811125]
[1765391171330,0.1465,92188.0,92187.0,0.1811125]
[1765391173119,0.07407,92188.0,92187.0,0.1811125]
[1765391173328,0.002,92188.0,92187.0,0.1811125]
[1765391175131,0.001,92188.0,92187.0,0.22003544]
[1765391175433,0.001,92188.0,92187.0,0.22103544]
[1765391175832,0.00021715,92193.0,92192.0,0.1405271]
[1765391176132,0.00021715,92193.0,92192.0,0.1753119]
[1765391176830,0.00121715,92193.0,92192.0,0.1753119]
[1765391177528,0.00221715,92193.0,92192.0,0.1753119]
[1765391177728,0.17662847,92210.0,92204.0,0.1778557]
[1765391177934,0.30461847,92210.0,92209.0,0.1405251]
[1765391178728,0.12799,92210.0,92209.0,0.17421943]
[1765391178933,0.12999,92210.0,92209.0,0.17421943]
[1765391179422,0.12799,92210.0,92209.0,0.17421943]
[1765391179623,0.12999,92210.0,92209.0,0.17421943]
[1765391180031,0.12799,92210.0,92209.0,0.17421943]
[1765391180239,0.12899,92210.0,92209.0,0.03369433]
[1765391180540,0.138836,92201.0,92200.0,0.12984271]
[1765391180729,0.499636,92201.0,92200.0,0.12984271]
[1765391181237,0.499636,92201.0,92200.0,0.06625271]
[1765391181433,0.138836,92201.0,92200.0,0.12984271]
[1765391181634,0.138836,92201.0,92200.0,0.00016271]
[1765391181835,0.138836,92201.0,92200.0,0.00116271]
[1765391182342,0.0108478,92186.0,92185.0,0.12968]
[1765391182533,0.1388378,92186.0,92185.0,0.12968]
[1765391183839,0.1398378,92186.0,92185.0,0.13368]
[1765391184634,0.1388378,92186.0,92185.0,0.13168]
[1765391184828,0.1388378,92186.0,92185.0,0.13368]
[1765391190740,0.12799,92186.0,92185.0,0.13368]
[1765391190936,0.42696,92190.0,92189.0,0.1403674]
[1765391191131,0.3608,92190.0,92189.0,0.1403674]
[1765391191325,0.00016271,92195.0,92189.0,0.1403674]
[1765391191530,0.00016271,92195.0,92194.0,0.1403669]
[1765391192438,0.00016271,92195.0,92194.0,0.17416934]
[1765391196746,0.06632271,92195.0,92194.0,0.17416934]
[1765391197237,0.13120271,92195.0,92194.0,0.16332244]
[1765391197441,0.13120271,92195.0,92194.0,0.03380244]
[1765391197643,0.1418879,92185.0,92184.0,0.1696]
[1765391197948,0.1418879,92185.0,92184.0,0.20309271]
[1765391198634,0.1418879,92185.0,92184.0,0.20509271]
[1765391198834,0.1418879,92185.0,92184.0,0.1736]
[1765391203947,0.1418879,92185.0,92184.0,0.13352]
[1765391204544,0.3608,92194.0,92191.0,0.010847]
[1765391204847,0.00016271,92195.0,92194.0,0.1403669]
[1765391205152,0.00016271,92195.0,92194.0,0.17544435]
[1765391207044,0.00116271,92195.0,92194.0,0.17544435]
[1765391207747,0.3608,92207.0,92206.0,0.1403654]
[1765391207941,0.0770038,92221.0,92217.0,0.0108442]
[1765391208135,0.0770038,92221.0,92220.0,0.12952]
[1765391208340,0.0770038,92221.0,92220.0,0.1403638]
[1765391208948,0.1418838,92221.0,92220.0,0.1403638]
[1765391209450,0.13404,92221.0,92220.0,0.1403638]
[1765391209649,0.003,92221.0,92220.0,0.1403638]
[1765391209952,0.00016271,92230.0,92229.0,0.1403627]
[1765391214741,0.010843,92227.0,92225.0,0.0641]
[1765391214942,0.010843,92227.0,92224.0,0.03999]
[1765391214943,0.141883,92227.0,92226.0,0.12952]
[1765391215342,0.01100531,92230.0,92229.0,0.1403627]
[1765391215544,0.14204531,92230.0,92229.0,0.1403627]
[1765391216050,0.01100531,92230.0,92229.0,0.1403627]
[1765391216251,0.07716531,92230.0,92229.0,0.1403627]
[1765391216547,0.00016271,92230.0,92229.0,0.1403627]
[1765391217348,0.06632271,92230.0,92229.0,0.1403627]
[1765391217653,0.00016271,92230.0,92229.0,0.1413627]
[1765391218345,0.06632271,92230.0,92229.0,0.1413627]
[1765391218953,0.00016271,92230.0,92229.0,0.1413627]
[1765391220449,0.11217271,92230.0,92229.0,0.13052]
[1765391221159,0.05571271,92230.0,92229.0,0.13052]
[1765391221652,0.00016271,92230.0,92229.0,0.13052]
[1765391223741,0.05571271,92230.0,92229.0,0.13052]
[1765391223959,0.00016271,92230.0,92229.0,0.13052]
[1765391228160,0.11217271,92230.0,92229.0,0.13052]
[1765391229160,0.11217271,92230.0,92229.0,0.0651]
[1765391230254,0.11217271,92230.0,92229.0,0.12222]
[1765391230255,0.05571271,92230.0,92229.0,0.12222]
[1765391230463,0.11217271,92230.0,92229.0,0.12222]
[1765391230658,0.05571271,92230.0,92229.0,0.12222]
[1765391230849,0.11217271,92230.0,92229.0,0.001]
[1765391231546,0.11217271,92230.0,92229.0,0.11436]
[1765391233164,0.11217271,92230.0,92229.0,0.001]
[1765391238165,0.0665142,92217.0,92215.0,0.00108443]
[1765391238368,0.47315,92216.0,92215.0,0.00108443]
[1765391238554,0.47315,92216.0,92215.0,0.03597274]
[1765391238760,0.47315,92216.0,92215.0,0.09387274]
[1765391239059,0.47315,92216.0,92215.0,0.14936274]
[1765391239368,0.47315,92216.0,92215.0,0.11747443]
[1765391239560,0.47315,92216.0,92215.0,0.12047443]
[1765391241071,0.47315,92216.0,92215.0,0.11747443]
[1765391241274,0.47315,92216.0,92215.0,0.00708443]
[1765391242267,0.47315,92216.0,92215.0,0.00408443]
[1765391242463,0.47315,92216.0,92215.0,0.00208443]
[1765391242670,0.47315,92216.0,92215.0,0.00308443]
[1765391245366,0.47315,92216.0,92215.0,0.11647443]
[1765391247074,0.3608,92216.0,92215.0,0.11647443]
[1765391247274,0.3608,92216.0,92215.0,0.15067741]
[1765391247472,0.4126,92223.0,92222.0,0.0108436]
[1765391247675,0.3608,92223.0,92222.0,0.1242336]
[1765391248179,0.4126,92223.0,92222.0,0.1242336]
[1765391248879,0.46286,92223.0,92222.0,0.1242336]
[1765391251284,0.09918,92220.0,92219.0,0.0108438]
[1765391251580,0.09918,92220.0,92219.0,0.1152838]
[1765391253488,0.09918,92220.0,92219.0,0.1162838]
[1765391253783,0.1078434,92224.0,92223.0,0.1152834]
[1765391254380,0.1078434,92224.0,92223.0,0.10444]
[1765391254884,0.1088434,92224.0,92223.0,0.10444]
[1765391255081,0.1088434,92224.0,92215.0,0.00108443]
[1765391255082,0.09482,92216.0,92215.0,0.00108443]
[1765391255287,0.1056643,92216.0,92215.0,0.00108443]
[1765391255674,0.1056647,92212.0,92211.0,0.00016271]
[1765391255974,0.3716443,92216.0,92190.0,0.03162472]
[1765391255975,0.010847,92194.0,92190.0,0.03162472]
[1765391256181,0.104587,92194.0,92193.0,0.1152869]
[1765391256583,0.104587,92194.0,92193.0,0.10444]
[1765391257283,0.105587,92194.0,92193.0,0.10444]
[1765391257977,0.104587,92194.0,92193.0,0.11044]
[1765391258287,0.67379093,92203.0,92202.0,0.10444]
[1765391258584,0.45298271,92203.0,92202.0,0.10444]
[1765391259184,0.46382851,92203.0,92202.0,0.10444]
[1765391259386,0.09096,92201.0,92200.0,0.03054]
[1765391260587,0.09096,92201.0,92200.0,0.03154]
[1765391261387,0.09096,92201.0,92200.0,0.13598]
[1765391266197,0.09096,92201.0,92200.0,0.001]
[1765391268597,0.0825,92191.0,92190.0,0.13606472]
[1765391268794,0.4433,92191.0,92190.0,0.13606472]
[1765391269196,0.4541472,92191.0,92190.0,0.00108472]
[1765391269697,0.4541472,92191.0,92190.0,0.08227472]
[1765391269885,0.4541472,92191.0,92190.0,0.13606472]
[1765391270498,0.4551472,92191.0,92190.0,0.13606472]
[1765391270888,0.4561472,92191.0,92190.0,0.13606472]
[1765391272284,0.4561472,92191.0,92190.0,0.03162472]
[1765391272497,0.4561472,92191.0,92190.0,0.08227472]
[1765391273099,0.4561472,92191.0,92190.0,0.13606472]
[1765391274002,0.002,92191.0,92190.0,0.17171788]
[1765391274202,0.3608,92202.0,92201.0,0.10444]
[1765391274701,0.3608,92202.0,92201.0,0.14009073]
[1765391276105,0.40011,92202.0,92201.0,0.14009073]
[1765391277305,0.03931,92202.0,92201.0,0.14009073]
[1765391277805,0.07862,92202.0,92201.0,0.14009073]
[1765391278299,0.63841163,92211.0,92202.0,0.1045559]
[1765391278300,0.0108454,92207.0,92202.0,0.1045559]
[1765391278506,0.0108454,92207.0,92202.0,0.14020663]
[1765391278702,0.0108456,92205.0,92202.0,0.14020663]
[1765391280004,0.0108456,92205.0,92202.0,0.14120663]
[1765391280391,0.07444271,92203.0,92202.0,0.14120663]
[1765391281406,0.07444271,92203.0,92202.0,0.14220663]
[1765391282201,0.07444271,92203.0,92202.0,0.13136073]
[1765391282503,0.43524271,92203.0,92202.0,0.13136073]
[1765391284110,0.43524271,92203.0,92202.0,0.08563073]
[1765391284408,0.43524271,92203.0,92202.0,0.002]
[1765391285291,0.43524271,92203.0,92202.0,0.09571]
[1765391285493,0.43524271,92203.0,92202.0,0.002]
[1765391285698,0.94052271,92203.0,92202.0,0.002]
[1765391286705,0.0796672,92191.0,92190.0,0.12533472]
[1765391287707,0.3608,92195.0,92194.0,0.1045569]
[1765391288211,0.3608,92195.0,92194.0,0.13867406]
[1765391289006,0.3608,92195.0,92194.0,0.14067406]
[1765391289204,0.42753,92195.0,92194.0,0.12982716]
[1765391289404,0.42753,92195.0,92194.0,0.13182716]
[1765391289594,0.39447,92195.0,92194.0,0.13182716]
[1765391289799,0.3608,92195.0,92194.0,0.13182716]
[1765391290114,0.39386,92195.0,92194.0,0.13182716]
[1765391290900,0.3608,92195.0,92194.0,0.13182716]
[1765391292406,0.00016271,92203.0,92202.0,0.08961]
[1765391292601,0.00016271,92203.0,92202.0,0.12372716]
[1765391293198,0.00016271,92203.0,92202.0,0.13457306]
[1765391294308,0.3608,92212.0,92211.0,0.0108449]
[1765391294610,0.04974306,92229.0,92213.0,0.08961]
[1765391294611,0.3608,92214.0,92213.0,0.08961]
[1765391294799,0.3608,92214.0,92213.0,0.12371609]
[1765391295201,0.3608,92214.0,92213.0,0.08961]
[1765391296210,0.3608,92214.0,92213.0,0.09061]
[1765391296906,0.3608,92214.0,92213.0,0.09161]
[1765391298309,0.05892,92221.0,92220.0,0.08961]
[1765391298809,0.05892,92221.0,92220.0,0.1004538]
[1765391300506,0.03016,92221.0,92220.0,0.4612538]
[1765391300705,0.00016271,92223.0,92222.0,0.08961]
[1765391301303,0.02751271,92223.0,92222.0,0.08961]
[1765391302111,0.02751271,92223.0,92222.0,0.09061]
[1765391302610,0.05486271,92223.0,92222.0,0.09061]
[1765391303513,0.05486271,92223.0,92222.0,0.09161]
[1765391303813,0.02751271,92223.0,92222.0,0.09161]
[1765391304003,0.05392271,92223.0,92222.0,0.09161]
[1765391306106,0.00016271,92223.0,92222.0,0.09161]
[1765391306701,0.02518271,92223.0,92222.0,0.09161]
[1765391307316,0.05020271,92223.0,92222.0,0.09161]
[1765391308118,0.02518271,92223.0,92222.0,0.09161]
[1765391308711,0.00016271,92223.0,92222.0,0.09161]
[1765391308911,0.00016271,92223.0,92222.0,0.125666]
[1765391309314,0.04838413,92240.0,92239.0,0.1233816]
[1765391309509,0.02473413,92240.0,92239.0,0.1233816]
[1765391309906,0.04838413,92240.0,92239.0,0.1233816]
[1765391310507,0.05038413,92240.0,92239.0,0.1233816]
[1765391310714,0.05338413,92240.0,92239.0,0.1233816]
[1765391311816,0.05238413,92240.0,92239.0,0.1233816]
[1765391312315,0.00508413,92240.0,92239.0,0.1233816]
[1765391312522,0.02740413,92240.0,92239.0,0.1233816]
[1765391312919,0.04972413,92240.0,92239.0,0.1233816]
[1765391313922,0.02740413,92240.0,92239.0,0.1233816]
[1765391314120,0.00508413,92240.0,92239.0,0.1233816]
[1765391314314,0.04792413,92240.0,92239.0,0.1233816]
[1765391319535,0.02650413,92240.0,92239.0,0.1233816]
[1765391319726,0.04569413,92240.0,92239.0,0.1233816]
[1765391320724,0.00508413,92240.0,92239.0,0.1233816]
[1765391320934,0.00010548,92249.0,92248.0,0.0979405]
[1765391321120,0.3608,92260.0,92258.0,0.0979393]
[1765391321321,0.09898525,92263.0,92258.0,0.0979393]
[1765391321823,0.3608,92262.0,92258.0,0.0979393]
[1765391322830,0.05219916,92259.0,92258.0,0.0979393]
[1765391323131,0.12555916,92259.0,92258.0,0.0979393]
[1765391323623,0.12755916,92259.0,92258.0,0.0979393]
[1765391324135,0.05419916,92259.0,92258.0,0.0979393]
[1765391324528,0.09898525,92263.0,92262.0,0.0108389]
[1765391324724,0.09898525,92263.0,92262.0,0.0979389]
[1765391325117,0.09898525,92263.0,92262.0,0.1317843]
[1765391325518,0.10098525,92263.0,92262.0,0.1317843]
[1765391326020,0.10198525,92263.0,92262.0,0.1317843]
[1765391326424,0.10098525,92263.0,92262.0,0.1317843]
[1765391326730,0.10098525,92263.0,92262.0,0.1327843]
[1765391327325,0.09898525,92263.0,92262.0,0.1337843]
[1765391330028,0.18844525,92263.0,92262.0,0.1337843]
[1765391330828,0.00108384,92265.0,92262.0,0.1338243]
[1765391331032,0.00021672,92286.0,92283.0,0.0979364]
[1765391331233,0.08967672,92286.0,92285.0,0.0871]
[1765391331430,0.45047672,92286.0,92285.0,0.0871]
[1765391332142,0.40680672,92286.0,92285.0,0.0871]
[1765391332339,0.36101672,92286.0,92285.0,0.0871]
[1765391333332,0.40780672,92286.0,92285.0,0.0871]
[1765391333639,0.00321672,92286.0,92285.0,0.0871]
[1765391333941,0.00221672,92286.0,92285.0,0.12277125]
[1765391334441,0.04600672,92286.0,92285.0,0.12377125]
[1765391334639,0.08967672,92286.0,92285.0,0.12377125]
[1765391338648,0.00021672,92286.0,92285.0,0.12377125]
[1765391339145,0.00108355,92290.0,92289.0,0.1058157]
[1765391339348,0.00108355,92290.0,92289.0,0.50028695]
[1765391339545,0.1095735,92308.0,92307.0,0.1058135]
[1765391339750,0.09874,92308.0,92307.0,0.1058135]
[1765391340447,0.46062325,92315.0,92314.0,0.1058128]
[1765391340647,0.40988325,92315.0,92314.0,0.1058128]
[1765391340838,0.00108325,92315.0,92314.0,0.1058128]
[1765391341039,0.00108325,92315.0,92314.0,0.50024246]
[1765391341436,0.09874,92327.0,92326.0,0.1058113]
[1765391342252,0.4703704,92334.0,92333.0,0.1058105]
[1765391342451,0.04908296,92340.0,92339.0,0.1058098]
[1765391342855,0.09982296,92340.0,92339.0,0.1058098]
[1765391343962,0.09982296,92340.0,92339.0,0.09498]
[1765391344467,0.10282296,92340.0,92339.0,0.09498]
[1765391344855,0.09982296,92340.0,92339.0,0.09498]
[1765391345051,0.10082296,92340.0,92339.0,0.09498]
[1765391345257,0.10182296,92340.0,92339.0,0.09498]
[1765391347760,0.09874,92329.0,92328.0,0.45578]
[1765391348061,0.09874,92329.0,92328.0,0.09498]
[1765391348062,0.048,92329.0,92328.0,0.09498]
[1765391348254,0.0108309,92330.0,92329.0,0.105811]
[1765391348454,0.0588309,92330.0,92329.0,0.105811]
[1765391348654,0.0588309,92330.0,92329.0,0.04834]
[1765391348655,0.1374809,92330.0,92329.0,0.04834]
[1765391348966,0.1095709,92330.0,92329.0,0.09498]
[1765391349462,0.09874,92330.0,92329.0,0.09498]
[1765391349762,0.1082502,92336.0,92335.0,0.1038903]
[1765391350864,0.00108296,92340.0,92329.0,0.09406]
[1765391350865,0.1370009,92330.0,92329.0,0.09406]
[1765391351062,0.1370009,92330.0,92329.0,0.002]
[1765391351261,0.4978009,92330.0,92329.0,0.002]
[1765391351468,0.4978009,92330.0,92327.0,0.0108311]
[1765391351768,0.4978009,92330.0,92327.0,0.09306]
[1765391351769,0.09742,92328.0,92327.0,0.09306]
[1765391352166,0.1082516,92324.0,92323.0,0.0558416]
[1765391352362,0.1082516,92324.0,92323.0,0.04501]
[1765391352856,0.1082516,92324.0,92323.0,0.09306]
[1765391353061,0.1082516,92324.0,92323.0,0.1038917]
[1765391353359,0.40958,92330.0,92329.0,0.103891]
[1765391353566,0.09742,92337.0,92336.0,0.0108302]
[1765391353758,0.09742,92337.0,92336.0,0.1038902]
[1765391354260,0.3608,92339.0,92338.0,0.09306]
[1765391354261,0.40958,92339.0,92338.0,0.09306]
[1765391355058,0.3608,92339.0,92338.0,0.12673516]
[1765391355467,0.41158,92339.0,92338.0,0.12673516]
[1765391355658,0.46022,92339.0,92338.0,0.12673516]
[1765391356065,0.45922,92339.0,92338.0,0.12673516]
[1765391356864,0.45922,92339.0,92338.0,0.03367516]
[1765391357358,0.45822,92339.0,92338.0,0.12673516]
[1765391358872,0.45822,92339.0,92338.0,0.03367516]
[1765391359074,0.45822,92339.0,92327.0,0.02906587]
[1765391359075,0.1362911,92328.0,92327.0,0.02906587]
[1765391359271,0.1362911,92328.0,92327.0,0.03370469]
[1765391359573,0.1362911,92328.0,92327.0,0.06273597]
[1765391359964,0.1362911,92328.0,92327.0,0.03370469]
[1765391360575,0.1362911,92328.0,92327.0,0.03570469]
[1765391360875,0.1362911,92328.0,92327.0,0.002]
[1765391361070,0.1362911,92328.0,92327.0,0.004]
[1765391361261,0.1362911,92328.0,92327.0,0.0371339]
[1765391362560,0.1362911,92328.0,92327.0,0.004]
[1765391364170,0.1362911,92328.0,92327.0,0.13002114]
[1765391364563,0.09742,92328.0,92327.0,0.13002114]
[1765391364759,0.0108309,92330.0,92329.0,0.09306]
[1765391364964,0.1082509,92330.0,92329.0,0.12602114]
[1765391366169,0.1082509,92330.0,92329.0,0.07797114]
[1765391366366,0.1082509,92330.0,92329.0,0.03296114]
[1765391366563,0.1082509,92330.0,92329.0,0.03396114]
[1765391366973,0.4690509,92330.0,92329.0,0.06308701]
[1765391367278,0.4690509,92330.0,92329.0,0.03496114]
[1765391372082,0.4690509,92330.0,92329.0,0.12362114]
[1765391374886,0.4690509,92330.0,92329.0,0.03496114]
[1765391375276,0.4690509,92330.0,92329.0,0.002]
[1765391379981,0.4954209,92330.0,92329.0,0.002]
[1765391380387,0.0108323,92318.0,92317.0,0.02930713]
[1765391380597,0.0972523,92318.0,92317.0,0.03125705]
[1765391381288,0.0972523,92318.0,92317.0,0.11991705]
[1765391381584,0.0972523,92318.0,92317.0,0.13074945]
[1765391381777,0.0972523,92318.0,92317.0,0.13474945]
[1765391382288,0.0972523,92318.0,92317.0,0.13774945]
[1765391383086,0.0972523,92318.0,92317.0,0.12691705]
[1765391383779,0.0972523,92318.0,92317.0,0.08129705]
[1765391385285,0.0972523,92318.0,92317.0,0.12691705]
[1765391386387,0.0972523,92318.0,92317.0,0.13774945]
[1765391386580,0.0549323,92318.0,92317.0,0.13774945]
[1765391386885,0.4049,92321.0,92319.0,0.0108321]
[1765391387090,0.4049,92321.0,92320.0,0.11975453]
[1765391387477,0.3608,92321.0,92320.0,0.11975453]
[1765391388378,0.0108317,92323.0,92322.0,0.08866]
[1765391388574,0.0108317,92323.0,92322.0,0.11975453]
[1765391389682,0.0549317,92323.0,92322.0,0.12175453]
[1765391389883,0.0549317,92323.0,92322.0,0.12375453]
[1765391390287,0.0972517,92323.0,92322.0,0.12375453]
[1765391390490,0.1236217,92323.0,92322.0,0.12375453]
[1765391390687,0.1236217,92323.0,92322.0,0.07813453]
[1765391390886,0.1236217,92323.0,92322.0,0.12375453]
[1765391392997,0.1236217,92323.0,92322.0,0.15289914]
[1765391393888,0.1236217,92323.0,92322.0,0.10727914]
[1765391394092,0.1236217,92323.0,92322.0,0.07813453]
[1765391395088,0.1236217,92323.0,92322.0,0.04704]
[1765391395391,0.1236217,92323.0,92322.0,0.004]
[1765391400201,0.08217,92318.0,92310.0,0.02914461]
[1765391400403,0.04001,92290.0,92289.0,0.09147667]
[1765391400604,0.0930056,92290.0,92289.0,0.03184637]
[1765391400996,0.08217,92273.0,92272.0,0.0525676]
[1765391401196,0.31677573,92284.0,92283.0,0.0801]
[1765391401399,0.08217,92284.0,92283.0,0.0801]
[1765391401710,0.08217,92282.0,92281.0,0.0525666]
[1765391401894,0.08217,92282.0,92281.0,0.0909366]
[1765391403508,0.08217,92282.0,92281.0,0.04173]
[1765391403709,0.10585,92280.0,92279.0,0.0525668]
[1765391404107,0.04001,92280.0,92279.0,0.0909368]
[1765391404306,0.3608,92285.0,92284.0,0.0909363]
[1765391404603,0.08233217,92293.0,92292.0,0.0909353]
[1765391405905,0.00216217,92293.0,92292.0,0.0909353]
[1765391406203,0.00316217,92293.0,92292.0,0.0909353]
[1765391406398,0.00316217,92293.0,92292.0,0.12008789]
[1765391406808,0.3608,92304.0,92303.0,0.0909341]
[1765391407792,0.02368,92320.0,92303.0,0.0909341]
[1765391407793,0.44297,92313.0,92312.0,0.090933]
[1765391408208,0.08217,92313.0,92312.0,0.090933]
[1765391409308,0.3608,92323.0,92314.0,0.04082]
[1765391409495,0.08221,92317.0,92316.0,0.0799]
[1765391411016,0.08321,92317.0,92316.0,0.0799]
[1765391411195,0.001,92317.0,92316.0,0.10904866]
[1765391411399,0.001,92317.0,92316.0,0.46984866]
[1765391411599,0.0930409,92331.0,92330.0,0.0799]
[1765391411804,0.08221,92331.0,92330.0,0.0907309]
[1765391411995,0.3608,92333.0,92332.0,0.0799]
[1765391412307,0.40058,92333.0,92332.0,0.0799]
[1765391412811,0.44301,92333.0,92332.0,0.0799]
[1765391413205,0.3608,92333.0,92332.0,0.0799]
[1765391413798,0.09412266,92340.0,92339.0,0.0799]
[1765391414798,0.09512266,92340.0,92339.0,0.0799]
[1765391415000,0.09712266,92340.0,92339.0,0.0799]
[1765391415411,0.09712266,92340.0,92324.0,0.3716316]
[1765391415412,0.08221,92325.0,92324.0,0.3716316]
[1765391415610,0.08221,92334.0,92333.0,0.0108304]
[1765391415911,0.08221,92334.0,92333.0,0.0907304]
[1765391416497,0.08221,92334.0,92333.0,0.0907305]
[1765391417207,0.08221,92334.0,92333.0,0.0917305]
[1765391417404,0.08221,92334.0,92333.0,0.0809]
[1765391417602,0.08221,92334.0,92333.0,0.0526505]
[1765391418008,0.08221,92334.0,92333.0,0.0917305]
[1765391418600,0.08221,92334.0,92324.0,0.3608]
[1765391418801,0.0930415,92325.0,92324.0,0.3608]
[1765391419013,0.08221,92324.0,92309.0,0.0108333]
[1765391419401,0.08221,92324.0,92308.0,0.0108334]
[1765391419599,0.08221,92324.0,92311.0,0.0108331]
[1765391420011,0.08221,92324.0,92313.0,0.0108328]
[1765391420407,0.08221,92324.0,92315.0,0.0108325]
[1765391420806,0.08221,92324.0,92323.0,0.00116252]
[1765391421613,0.08421,92324.0,92323.0,0.00116252]
[1765391421801,0.08721,92324.0,92323.0,0.00016252]
[1765391424516,0.44801,92324.0,92323.0,0.00016252]
[1765391424913,0.44801,92324.0,92296.0,0.4407]
[1765391424914,0.0930448,92297.0,92296.0,0.4407]
[1765391425113,0.0930448,92297.0,92296.0,0.46982223]
[1765391425416,0.0930448,92297.0,92296.0,0.10902223]
[1765391426512,0.0930448,92297.0,92296.0,0.07294223]
[1765391426710,0.0930448,92297.0,92296.0,0.0859]
[1765391429817,0.3608,92304.0,92303.0,0.0885441]
[1765391430018,0.00016252,92306.0,92305.0,0.07771]
[1765391430521,0.04036252,92306.0,92305.0,0.07771]
[1765391431121,0.04036252,92306.0,92305.0,0.07871]
[1765391432417,0.08021252,92306.0,92305.0,0.07871]
[1765391433121,0.08021252,92306.0,92305.0,0.04106]
[1765391433327,0.08021252,92306.0,92305.0,0.003]
[1765391434321,0.1095458,92288.0,92287.0,0.00016252]
[1765391434521,0.4703458,92288.0,92287.0,0.00016252]
[1765391435022,0.4703458,92288.0,92287.0,0.04022252]
[1765391435318,0.08005,92288.0,92287.0,0.07787252]
[1765391435530,0.0510354,92292.0,92291.0,0.0885455]
[1765391435841,0.08005,92292.0,92291.0,0.0885455]
[1765391436216,0.08005,92298.0,92297.0,0.0885448]
[1765391436411,0.0402,92302.0,92301.0,0.0108341]
[1765391436615,0.04036252,92306.0,92305.0,0.07771]
[1765391437215,0.08021252,92306.0,92305.0,0.07771]
[1765391437922,0.08021252,92306.0,92305.0,0.07871]
[1765391438917,0.08021252,92306.0,92305.0,0.07971]
[1765391442222,0.00016252,92306.0,92305.0,0.07971]
[1765391442822,0.401,92318.0,92317.0,0.0885424]
[1765391443342,0.0908817,92323.0,92322.0,0.0885418]
[1765391444215,0.08005,92323.0,92322.0,0.0885418]
[1765391444522,0.0402,92323.0,92322.0,0.0885418]
[1765391444728,0.0422,92323.0,92322.0,0.0885418]
[1765391445430,0.002,92323.0,92322.0,0.0885418]
[1765391445625,0.08305,92323.0,92322.0,0.0885418]
[1765391446027,0.08305,92323.0,92322.0,0.04006]
[1765391446221,0.08105,92323.0,92322.0,0.04006]
[1765391446531,0.08105,92323.0,92322.0,0.07771]
[1765391447826,0.08105,92323.0,92313.0,0.00016252]
[1765391447827,0.08005,92314.0,92313.0,0.00016252]
[1765391448433,0.08005,92314.0,92313.0,0.03030652]
[1765391448629,0.08005,92314.0,92313.0,0.07036652]
[1765391449036,0.08005,92314.0,92313.0,0.0303065]
[1765391449235,0.08005,92314.0,92313.0,0.0333065]
[1765391449934,0.08005,92314.0,92313.0,0.0313065]
[1765391450127,0.08005,92314.0,92313.0,0.00216252]
[1765391450326,0.08005,92314.0,92313.0,2.52e-06]
[1765391451432,0.08005,92314.0,92313.0,0.04006252]
[1765391452021,0.001,92314.0,92313.0,2.52e-06]
[1765391452230,0.08005,92309.0,92308.0,0.0508934]
[1765391452429,0.0908833,92309.0,92308.0,0.0508934]
[1765391452621,0.0908833,92309.0,92308.0,0.0885434]
[1765391453127,0.0908833,92309.0,92308.0,0.04006]
[1765391453330,0.0908833,92309.0,92308.0,0.04106]
[1765391453531,0.0908833,92309.0,92308.0,0.001]
[1765391455933,0.0908833,92309.0,92308.0,0.07871]
[1765391456535,0.0908833,92309.0,92308.0,0.001]
[1765391457233,0.0908833,92309.0,92308.0,0.07871]
[1765391457736,0.0908833,92309.0,92308.0,0.04106]
[1765391458234,0.0908833,92309.0,92308.0,0.07871]
[1765391459335,0.08005,92309.0,92308.0,0.07871]
[1765391459530,0.3608,92315.0,92314.0,0.0798728]
[1765391459730,0.3608,92320.0,92314.0,0.0798728]
[1765391459731,0.03456,92322.0,92321.0,0.0108319]
[1765391459933,0.03456,92322.0,92321.0,0.0798719]
[1765391460622,0.3716316,92324.0,92322.0,0.09018]
[1765391460623,0.3608,92324.0,92322.0,0.09018]
[1765391460824,0.3608,92324.0,92322.0,0.12027725]
[1765391461028,0.02488296,92340.0,92322.0,0.12027725]
[1765391461029,0.0108301,92337.0,92322.0,0.48107725]
[1765391461239,0.0108301,92337.0,92322.0,0.51025678]
[1765391461540,0.02488296,92340.0,92322.0,0.51025678]
[1765391461541,0.03564296,92340.0,92339.0,0.0798698]
[1765391461723,0.00108296,92340.0,92339.0,0.0798698]
[1765391461927,0.00108296,92340.0,92339.0,0.10982789]
[1765391462637,0.00308296,92340.0,92339.0,0.10982789]
[1765391462834,0.00308296,92340.0,92339.0,0.13899206]
[1765391463131,0.05,92357.0,92356.0,0.0798678]
[1765391463537,0.0323374,92357.0,92356.0,0.0798678]
[1765391463734,0.0323374,92357.0,92356.0,0.10953659]
[1765391464237,0.0373374,92357.0,92356.0,0.4406678]
[1765391464743,0.0373374,92357.0,92356.0,0.47057965]
[1765391464933,0.0413374,92357.0,92356.0,0.47057965]
[1765391465128,0.01454338,92357.0,92356.0,0.4406678]
[1765391465346,0.09008,92380.0,92379.0,0.0798651]
[1765391465544,0.06825,92385.0,92384.0,0.06904]
[1765391466447,0.06825,92385.0,92384.0,0.03573]
[1765391466747,0.07225,92385.0,92384.0,0.03573]
[1765391467140,0.03456,92377.0,92376.0,0.0798654]
[1765391467345,0.06825,92377.0,92376.0,0.0798654]
[1765391467845,0.06825,92377.0,92370.0,0.38210241]
[1765391467846,0.008,92385.0,92384.0,0.0798646]
[1765391468159,0.004,92385.0,92384.0,0.0798646]
[1765391468550,0.00108237,92390.0,92389.0,0.079864]
[1765391469454,0.07597,92405.0,92404.0,0.0843621]
[1765391469747,0.0485413,92412.0,92411.0,0.07354]
[1765391469954,0.0867913,92412.0,92411.0,0.07354]
[1765391470151,0.07597,92412.0,92411.0,0.03618]
[1765391470354,0.07597,92404.0,92403.0,0.0843622]
[1765391470555,0.07597,92404.0,92403.0,0.07354]
[1765391471056,0.0485418,92408.0,92407.0,0.07354]
[1765391471252,0.0867918,92408.0,92407.0,0.07354]
[1765391471453,0.07597,92405.0,92404.0,0.3608]
[1765391471753,0.07597,92401.0,92400.0,0.0843626]
[1765391471952,0.02185,92410.0,92396.0,1.5]